Workbook

Sheet Online
A1: Minutes | B1: °F FT | C1: % O2x10 | D1: % COx100 | E1: % Effg | F1: Date / time | G1: °F AT | H1: °F FT | I1: % O2 | J1: ppm CO | K1: % CO2 | L1: ratio | M1: % Effg | N1: % Effn | O1: % ExAir | P1: ppm uCO | Q1: °F AT | R1: ppm amCO2 | S1: ppm amCO | T1: l/min Pump
B2: =AVERAGE(FT) -> 422.5093407 | C2: =AVERAGE(Oxy) -> 12.24065934 | D2: =AVERAGE(CO) -> 1794.714286 | E2: =AVERAGE(Effg) -> 79.56666667
A3: 18.5 | B3: =FT -> 198.4 | C3: =Oxy*10 -> 209 | D3: =CO/100 -> 2.16 | E3: =Effg -> 0 | F3: 2009-02-22T20:10:17 | G3: 63.3 | H3: 198.4 | I3: 20.9 | J3: 216 | Q3: 63.3 | T3: 0.55
A4: 19 | B4: 211.9 | C4: 203 | D4: 9.68 | E4: 0 | F4: 2009-02-22T20:10:47 | G4: 61 | H4: 211.9 | I4: 20.3 | J4: 968 | Q4: 61 | T4: 0.47
A5: 19.5 | B5: 236 | C5: 183 | D5: 12.68 | E5: 73.1 | F5: 2009-02-22T20:11:17 | G5: 62.5 | H5: 236 | I5: 18.3 | J5: 1268 | K5: 2.62 | L5: 0.0484 | M5: 73.1 | N5: 77.6 | O5: 675.6 | P5: 9835 | Q5: 62.5 | T5: 0.47
A6: 20 | B6: 247.9 | C6: 169 | D6: 8.86 | E6: 79.4 | F6: 2009-02-22T20:11:47 | G6: 62 | H6: 247.9 | I6: 16.9 | J6: 886 | K6: 3.94 | L6: 0.0225 | M6: 79.4 | N6: 84.3 | O6: 415.7 | P6: 4569 | Q6: 62 | T6: 0.44
A7: 20.5 | B7: 264.6 | C7: 158 | D7: 9.78 | E7: 81.4 | F7: 2009-02-22T20:12:17 | G7: 62.1 | H7: 264.6 | I7: 15.8 | J7: 978 | K7: 5.06 | L7: 0.0193 | M7: 81.4 | N7: 86.5 | O7: 301 | P7: 3922 | Q7: 62.1 | T7: 0.43
A8: 21 | B8: 270.5 | C8: 150 | D8: 14.85 | E8: 82.2 | F8: 2009-02-22T20:12:47 | G8: 62.2 | H8: 270.5 | I8: 15 | J8: 1485 | K8: 5.81 | L8: 0.0256 | M8: 82.2 | N8: 87.3 | O8: 249.4 | P8: 5189 | Q8: 62.2 | T8: 0.43
A9: 21.5 | B9: 272.4 | C9: 151 | D9: 15.37 | E9: 81.8 | F9: 2009-02-22T20:13:17 | G9: 61.7 | H9: 272.4 | I9: 15.1 | J9: 1537 | K9: 5.69 | L9: 0.027 | M9: 81.8 | N9: 86.9 | O9: 256.6 | P9: 5481 | Q9: 61.7 | T9: 0.43
A10: 22 | B10: 278.4 | C10: 154 | D10: 15.44 | E10: 81 | F10: 2009-02-22T20:13:47 | G10: 62.2 | H10: 278.4 | I10: 15.4 | J10: 1544 | K10: 5.46 | L10: 0.0283 | M10: 81 | N10: 86 | O10: 272.1 | P10: 5745 | Q10: 62.2 | T10: 0.44
A11: 22.5 | B11: 280.6 | C11: 152 | D11: 13.11 | E11: 81.5 | F11: 2009-02-22T20:14:17 | G11: 61.8 | H11: 280.6 | I11: 15.2 | J11: 1311 | K11: 5.64 | L11: 0.0233 | M11: 81.5 | N11: 86.5 | O11: 260.2 | P11: 4722 | Q11: 61.8 | T11: 0.44
A12: 23 | B12: 279.6 | C12: 157 | D12: 4.03 | E12: 81.3 | F12: 2009-02-22T20:14:47 | G12: 61.3 | H12: 279.6 | I12: 15.7 | J12: 403 | K12: 5.12 | L12: 0.0079 | M12: 81.3 | N12: 86.3 | O12: 296.3 | P12: 1597 | Q12: 61.3 | T12: 0.45
A13: 23.5 | B13: 282.8 | C13: 162 | D13: 2.79 | E13: 79.9 | F13: 2009-02-22T20:15:17 | G13: 61.1 | H13: 282.8 | I13: 16.2 | J13: 279 | K13: 4.61 | L13: 0.0061 | M13: 79.9 | N13: 84.8 | O13: 340.5 | P13: 1229 | Q13: 61.1 | T13: 0.46
A14: 24 | B14: 287.7 | C14: 163 | D14: 2.99 | E14: 79.4 | F14: 2009-02-22T20:15:47 | G14: 61.8 | H14: 287.7 | I14: 16.3 | J14: 299 | K14: 4.53 | L14: 0.0066 | M14: 79.4 | N14: 84.3 | O14: 348.5 | P14: 1341 | Q14: 61.8 | T14: 0.46
A15: 24.5 | B15: 289 | C15: 165 | D15: 3.68 | E15: 78.6 | F15: 2009-02-22T20:16:17 | G15: 61.1 | H15: 289 | I15: 16.5 | J15: 368 | K15: 4.35 | L15: 0.0085 | M15: 78.6 | N15: 83.5 | O15: 366.9 | P15: 1718 | Q15: 61.1 | T15: 0.46
A16: 25 | B16: 292.9 | C16: 164 | D16: 3.16 | E16: 78.9 | F16: 2009-02-22T20:16:47 | G16: 62.7 | H16: 292.9 | I16: 16.4 | J16: 316 | K16: 4.47 | L16: 0.0071 | M16: 78.9 | N16: 83.8 | O16: 354.6 | P16: 1437 | Q16: 62.7 | T16: 0.46
A17: 25.5 | B17: 298.6 | C17: 162 | D17: 3.27 | E17: 79.1 | F17: 2009-02-22T20:17:17 | G17: 62.3 | H17: 298.6 | I17: 16.2 | J17: 327 | K17: 4.66 | L17: 0.007 | M17: 79.1 | N17: 84 | O17: 335.2 | P17: 1423 | Q17: 62.3 | T17: 0.46
A18: 26 | B18: 299.7 | C18: 160 | D18: 3.3 | E18: 79.7 | F18: 2009-02-22T20:17:47 | G18: 63.4 | H18: 299.7 | I18: 16 | J18: 330 | K18: 4.86 | L18: 0.0068 | M18: 79.7 | N18: 84.6 | O18: 317.6 | P18: 1378 | Q18: 63.4 | T18: 0.46
A19: 26.5 | B19: 299.8 | C19: 160 | D19: 4.5 | E19: 79.3 | F19: 2009-02-22T20:18:17 | G19: 62.5 | H19: 299.8 | I19: 16 | J19: 450 | K19: 4.79 | L19: 0.0094 | M19: 79.3 | N19: 84.2 | O19: 323.9 | P19: 1908 | Q19: 62.5 | T19: 0.46
A20: 27 | B20: 299.2 | C20: 161 | D20: 6.93 | E20: 79.1 | F20: 2009-02-22T20:18:47 | G20: 63.2 | H20: 299.2 | I20: 16.1 | J20: 693 | K20: 4.77 | L20: 0.0145 | M20: 79.1 | N20: 84 | O20: 325.2 | P20: 2947 | Q20: 63.2 | T20: 0.46
A21: 27.5 | B21: 299.4 | C21: 162 | D21: 7.19 | E21: 78.6 | F21: 2009-02-22T20:19:17 | G21: 62.8 | H21: 299.4 | I21: 16.2 | J21: 719 | K21: 4.65 | L21: 0.0155 | M21: 78.6 | N21: 83.5 | O21: 336.9 | P21: 3141 | Q21: 62.8 | T21: 0.47
A22: 28 | B22: 305.6 | C22: 163 | D22: 7.77 | E22: 77.8 | F22: 2009-02-22T20:19:47 | G22: 61.5 | H22: 305.6 | I22: 16.3 | J22: 777 | K22: 4.57 | L22: 0.017 | M22: 77.8 | N22: 82.7 | O22: 344.4 | P22: 3453 | Q22: 61.5 | T22: 0.47
A23: 28.5 | B23: 300.8 | C23: 165 | D23: 9.97 | E23: 77.1 | F23: 2009-02-22T20:20:17 | G23: 62.5 | H23: 300.8 | I23: 16.5 | J23: 997 | K23: 4.33 | L23: 0.023 | M23: 77.1 | N23: 81.9 | O23: 368.7 | P23: 4673 | Q23: 62.5 | T23: 0.47
A24: 29 | B24: 301.5 | C24: 166 | D24: 13.21 | E24: 76.5 | F24: 2009-02-22T20:20:47 | G24: 62.4 | H24: 301.5 | I24: 16.6 | J24: 1321 | K24: 4.27 | L24: 0.0309 | M24: 76.5 | N24: 81.2 | O24: 375.3 | P24: 6279 | Q24: 62.4 | T24: 0.47
A25: 29.5 | B25: 302.3 | C25: 164 | D25: 13.98 | E25: 76.8 | F25: 2009-02-22T20:21:17 | G25: 62.3 | H25: 302.3 | I25: 16.4 | J25: 1398 | K25: 4.41 | L25: 0.0317 | M25: 76.8 | N25: 81.6 | O25: 360.7 | P25: 6441 | Q25: 62.3 | T25: 0.46
A26: 30 | B26: 304.1 | C26: 165 | D26: 13 | E26: 76.7 | F26: 2009-02-22T20:21:47 | G26: 61.8 | H26: 304.1 | I26: 16.5 | J26: 1300 | K26: 4.37 | L26: 0.0297 | M26: 76.7 | N26: 81.4 | O26: 364.2 | P26: 6035 | Q26: 61.8 | T26: 0.46
A27: 30.5 | B27: 304.3 | C27: 164 | D27: 10.76 | E27: 77.1 | F27: 2009-02-22T20:22:17 | G27: 62.4 | H27: 304.3 | I27: 16.4 | J27: 1076 | K27: 4.41 | L27: 0.0244 | M27: 77.1 | N27: 81.9 | O27: 360.6 | P27: 4956 | Q27: 62.4 | T27: 0.46
A28: 31 | B28: 306 | C28: 165 | D28: 9.82 | E28: 77 | F28: 2009-02-22T20:22:47 | G28: 62.1 | H28: 306 | I28: 16.5 | J28: 982 | K28: 4.39 | L28: 0.0224 | M28: 77 | N28: 81.8 | O28: 362.7 | P28: 4544 | Q28: 62.1 | T28: 0.46
A29: 31.5 | B29: 307.4 | C29: 162 | D29: 9.42 | E29: 77.9 | F29: 2009-02-22T20:23:17 | G29: 62.4 | H29: 307.4 | I29: 16.2 | J29: 942 | K29: 4.65 | L29: 0.0203 | M29: 77.9 | N29: 82.7 | O29: 336.5 | P29: 4112 | Q29: 62.4 | T29: 0.45
A30: 32 | B30: =FT -> 315.3 | C30: =Oxy*10 -> 157 | D30: =CO/100 -> 7.86 | E30: =Effg -> 78.9 | F30: 2009-02-22T20:23:47 | G30: 62.4 | H30: 315.3 | I30: 15.7 | J30: 786 | K30: 5.09 | L30: 0.0154 | M30: 78.9 | N30: 83.8 | O30: 298.8 | P30: 3135 | Q30: 62.4 | T30: 0.45
A31: 32.5 | B31: 308.5 | C31: 156 | D31: 6.3 | E31: 79.9 | F31: 2009-02-22T20:24:17 | G31: 62.5 | H31: 308.5 | I31: 15.6 | J31: 630 | K31: 5.27 | L31: 0.012 | M31: 79.9 | N31: 84.8 | O31: 285.4 | P31: 2428 | Q31: 62.5 | T31: 0.45
A32: 33 | B32: 311.9 | C32: 156 | D32: 7.65 | E32: 79.5 | F32: 2009-02-22T20:24:47 | G32: 62.1 | H32: 311.9 | I32: 15.6 | J32: 765 | K32: 5.24 | L32: 0.0146 | M32: 79.5 | N32: 84.4 | O32: 287.2 | P32: 2962 | Q32: 62.1 | T32: 0.44
A33: 33.5 | B33: 313.4 | C33: 155 | D33: 8.27 | E33: 79.5 | F33: 2009-02-22T20:25:17 | G33: 61.8 | H33: 313.4 | I33: 15.5 | J33: 827 | K33: 5.3 | L33: 0.0156 | M33: 79.5 | N33: 84.4 | O33: 282.9 | P33: 3167 | Q33: 61.8 | T33: 0.45
A34: 34 | B34: 311.3 | C34: 156 | D34: 7.69 | E34: 79.4 | F34: 2009-02-22T20:25:47 | G34: 61.8 | H34: 311.3 | I34: 15.6 | J34: 769 | K34: 5.2 | L34: 0.0148 | M34: 79.4 | N34: 84.3 | O34: 290.1 | P34: 2999 | Q34: 61.8 | T34: 0.44
A35: 34.5 | B35: 309.6 | C35: 156 | D35: 8.01 | E35: 79.6 | F35: 2009-02-22T20:26:17 | G35: 62.8 | H35: 309.6 | I35: 15.6 | J35: 801 | K35: 5.22 | L35: 0.0153 | M35: 79.6 | N35: 84.5 | O35: 288.7 | P35: 3114 | Q35: 62.8 | T35: 0.45
A36: 35 | B36: 315.6 | C36: 155 | D36: 7.77 | E36: 79.5 | F36: 2009-02-22T20:26:47 | G36: 62.6 | H36: 315.6 | I36: 15.5 | J36: 777 | K36: 5.32 | L36: 0.0146 | M36: 79.5 | N36: 84.4 | O36: 281.4 | P36: 2963 | Q36: 62.6 | T36: 0.45
A37: 35.5 | B37: 320.3 | C37: 147 | D37: 9.14 | E37: 80.9 | F37: 2009-02-22T20:27:17 | G37: 62.2 | H37: 320.3 | I37: 14.7 | J37: 914 | K37: 6.1 | L37: 0.015 | M37: 80.9 | N37: 85.9 | O37: 233 | P37: 3044 | Q37: 62.2 | T37: 0.44
A38: 36 | B38: 331 | C38: 139 | D38: 9.99 | E38: 81.8 | F38: 2009-02-22T20:27:47 | G38: 63.7 | H38: 331 | I38: 13.9 | J38: 999 | K38: 6.88 | L38: 0.0145 | M38: 81.8 | N38: 86.9 | O38: 195.1 | P38: 2948 | Q38: 63.7 | T38: 0.43
A39: 36.5 | B39: 332.9 | C39: 137 | D39: 12.4 | E39: 81.7 | F39: 2009-02-22T20:28:17 | G39: 61.8 | H39: 332.9 | I39: 13.7 | J39: 1240 | K39: 7.06 | L39: 0.0176 | M39: 81.7 | N39: 86.8 | O39: 187.4 | P39: 3564 | Q39: 61.8 | T39: 0.43
A40: 37 | B40: 339 | C40: 137 | D40: 15.97 | E40: 81.3 | F40: 2009-02-22T20:28:47 | G40: 62.9 | H40: 339 | I40: 13.7 | J40: 1597 | K40: 7.1 | L40: 0.0225 | M40: 81.3 | N40: 86.4 | O40: 185.8 | P40: 4565 | Q40: 62.9 | T40: 0.43
A41: 37.5 | B41: 331.8 | C41: 134 | D41: 18.25 | E41: 81.9 | F41: 2009-02-22T20:29:17 | G41: 63.1 | H41: 331.8 | I41: 13.4 | J41: 1825 | K41: 7.34 | L41: 0.0249 | M41: 81.9 | N41: 86.9 | O41: 176.5 | P41: 5046 | Q41: 63.1 | T41: 0.43
A42: 38 | B42: 343 | C42: 133 | D42: 23.45 | E42: 81.3 | F42: 2009-02-22T20:29:47 | G42: 63.5 | H42: 343 | I42: 13.3 | J42: 2345 | K42: 7.45 | L42: 0.0315 | M42: 81.3 | N42: 86.3 | O42: 172.3 | P42: 6386 | Q42: 63.5 | T42: 0.43
A43: 38.5 | B43: 347.7 | C43: 131 | D43: 27.37 | E43: 81.1 | F43: 2009-02-22T20:30:17 | G43: 63.7 | H43: 347.7 | I43: 13.1 | J43: 2737 | K43: 7.65 | L43: 0.0358 | M43: 81.1 | N43: 86.2 | O43: 165.2 | P43: 7259 | Q43: 63.7 | T43: 0.43
A44: 39 | B44: 354 | C44: 128 | D44: 28.62 | E44: 81.2 | F44: 2009-02-22T20:30:47 | G44: 63.2 | H44: 354 | I44: 12.8 | J44: 2862 | K44: 7.95 | L44: 0.036 | M44: 81.2 | N44: 86.3 | O44: 155.2 | P44: 7304 | Q44: 63.2 | T44: 0.43
A45: 39.5 | B45: 349.7 | C45: 127 | D45: 28.23 | E45: 81.6 | F45: 2009-02-22T20:31:17 | G45: 63.4 | H45: 349.7 | I45: 12.7 | J45: 2823 | K45: 8.05 | L45: 0.0351 | M45: 81.6 | N45: 86.6 | O45: 152.1 | P45: 7116 | Q45: 63.4 | T45: 0.42
A46: 40 | B46: 359.7 | C46: 123 | D46: 29.35 | E46: 81.6 | F46: 2009-02-22T20:31:47 | G46: 63 | H46: 359.7 | I46: 12.3 | J46: 2935 | K46: 8.42 | L46: 0.0349 | M46: 81.6 | N46: 86.7 | O46: 141.2 | P46: 7079 | Q46: 63 | T46: 0.42
A47: 40.5 | B47: 369.3 | C47: 119 | D47: 26.96 | E47: 82 | F47: 2009-02-22T20:32:17 | G47: 64 | H47: 369.3 | I47: 11.9 | J47: 2696 | K47: 8.83 | L47: 0.0305 | M47: 82 | N47: 87.1 | O47: 130 | P47: 6199 | Q47: 64 | T47: 0.41
A48: 41 | B48: 371.6 | C48: 118 | D48: 28.38 | E48: 81.9 | F48: 2009-02-22T20:32:47 | G48: 63 | H48: 371.6 | I48: 11.8 | J48: 2838 | K48: 8.89 | L48: 0.0319 | M48: 81.9 | N48: 87 | O48: 128.4 | P48: 6481 | Q48: 63 | T48: 0.41
A49: 41.5 | B49: 370.9 | C49: 125 | D49: 13.6 | E49: 81.9 | F49: 2009-02-22T20:33:17 | G49: 61.7 | H49: 370.9 | I49: 12.5 | J49: 1360 | K49: 8.21 | L49: 0.0166 | M49: 81.9 | N49: 86.9 | O49: 147.3 | P49: 3363 | Q49: 61.7 | T49: 0.41
A50: 42 | B50: 365.1 | C50: 133 | D50: 9.73 | E50: 81.4 | F50: 2009-02-22T20:33:47 | G50: 63.7 | H50: 365.1 | I50: 13.3 | J50: 973 | K50: 7.48 | L50: 0.013 | M50: 81.4 | N50: 86.4 | O50: 171.5 | P50: 2641 | Q50: 63.7 | T50: 0.4
A51: 42.5 | B51: 364.4 | C51: 133 | D51: 8.76 | E51: 81.4 | F51: 2009-02-22T20:34:17 | G51: 63.1 | H51: 364.4 | I51: 13.3 | J51: 876 | K51: 7.42 | L51: 0.0118 | M51: 81.4 | N51: 86.4 | O51: 173.6 | P51: 2397 | Q51: 63.1 | T51: 0.4
A52: 43 | B52: 370 | C52: 131 | D52: 8.79 | E52: 81.4 | F52: 2009-02-22T20:34:47 | G52: 64.1 | H52: 370 | I52: 13.1 | J52: 879 | K52: 7.59 | L52: 0.0116 | M52: 81.4 | N52: 86.5 | O52: 167.5 | P52: 2351 | Q52: 64.1 | T52: 0.41
A53: 43.5 | B53: 372.1 | C53: 126 | D53: 8.5 | E53: 82.2 | F53: 2009-02-22T20:35:17 | G53: 64 | H53: 372.1 | I53: 12.6 | J53: 850 | K53: 8.16 | L53: 0.0104 | M53: 82.2 | N53: 87.3 | O53: 148.7 | P53: 2114 | Q53: 64 | T53: 0.41
A54: 44 | B54: 375.2 | C54: 121 | D54: 13.48 | E54: 82.4 | F54: 2009-02-22T20:35:47 | G54: 64.4 | H54: 375.2 | I54: 12.1 | J54: 1348 | K54: 8.63 | L54: 0.0156 | M54: 82.4 | N54: 87.5 | O54: 135.1 | P54: 3169 | Q54: 64.4 | T54: 0.4
A55: 44.5 | B55: 381.5 | C55: 117 | D55: 20.33 | E55: 82.1 | F55: 2009-02-22T20:36:17 | G55: 63.6 | H55: 381.5 | I55: 11.7 | J55: 2033 | K55: 8.96 | L55: 0.0227 | M55: 82.1 | N55: 87.2 | O55: 126.6 | P55: 4606 | Q55: 63.6 | T55: 0.41
A56: 45 | B56: 376.3 | C56: 116 | D56: 27.9 | E56: 82.1 | F56: 2009-02-22T20:36:47 | G56: 63.9 | H56: 376.3 | I56: 11.6 | J56: 2790 | K56: 9.11 | L56: 0.0306 | M56: 82.1 | N56: 87.1 | O56: 122.8 | P56: 6215 | Q56: 63.9 | T56: 0.4
A57: 45.5 | B57: 383.1 | C57: 113 | D57: 35.03 | E57: 81.8 | F57: 2009-02-22T20:37:17 | G57: 63.4 | H57: 383.1 | I57: 11.3 | J57: 3503 | K57: 9.4 | L57: 0.0373 | M57: 81.8 | N57: 86.8 | O57: 116 | P57: 7565 | Q57: 63.4 | T57: 0.4
A58: 46 | B58: 386.7 | C58: 106 | D58: 39.47 | E58: 82.2 | F58: 2009-02-22T20:37:47 | G58: 63.7 | H58: 386.7 | I58: 10.6 | J58: 3947 | K58: 10.05 | L58: 0.0393 | M58: 82.2 | N58: 87.3 | O58: 102 | P58: 7975 | Q58: 63.7 | T58: 0.4
A59: 46.5 | B59: 388.4 | C59: 93 | D59: 51.08 | E59: 82.7 | F59: 2009-02-22T20:38:17 | G59: 61.8 | H59: 388.4 | I59: 9.3 | J59: 5108 | K59: 11.3 | L59: 0.0452 | M59: 82.7 | N59: 87.8 | O59: 79.7 | P59: 9180 | Q59: 61.8 | T59: 0.42
A60: 47 | B60: 401.3 | C60: 88 | D60: 60 | E60: 82.5 | F60: 2009-02-22T20:38:47 | G60: 61.2 | H60: 401.3 | I60: 8.8 | J60: 6000 | K60: 11.82 | L60: 0.0508 | M60: 82.5 | N60: 87.6 | O60: 71.8 | P60: 10306 | Q60: 61.2 | T60: 0.4
A61: 47.5 | B61: 404 | C61: 83 | D61: 60 | E61: 82.8 | F61: 2009-02-22T20:39:17 | G61: 60.9 | H61: 404 | I61: 8.3 | J61: 6000 | K61: 12.3 | L61: 0.0488 | M61: 82.8 | N61: 87.9 | O61: 65 | P61: 9903 | Q61: 60.9 | T61: 0.4
A62: 48 | B62: 408.6 | C62: 82 | D62: 80 | E62: 82 | F62: 2009-02-22T20:39:47 | G62: 61.5 | H62: 408.6 | I62: 8.2 | J62: 8000 | K62: 12.37 | L62: 0.0647 | M62: 82 | N62: 87 | O62: 64.2 | P62: 13133 | Q62: 61.5 | T62: 0.4
A63: 48.5 | B63: 403.8 | C63: 80 | D63: 90 | E63: 81.9 | F63: 2009-02-22T20:40:17 | G63: 61.3 | H63: 403.8 | I63: 8 | J63: 9000 | K63: 12.61 | L63: 0.0714 | M63: 81.9 | N63: 87 | O63: 61 | P63: 14493 | Q63: 61.3 | T63: 0.4
A64: 49 | B64: 410.5 | C64: 81 | D64: 90 | E64: 81.6 | F64: 2009-02-22T20:40:47 | G64: 61.6 | H64: 410.5 | I64: 8.1 | J64: 9000 | K64: 12.48 | L64: 0.0721 | M64: 81.6 | N64: 86.7 | O64: 62.6 | P64: 14636 | Q64: 61.6 | T64: 0.41
A65: 49.5 | B65: 407.6 | C65: 82 | D65: 70 | E65: 82.4 | F65: 2009-02-22T20:41:17 | G65: 61.7 | H65: 407.6 | I65: 8.2 | J65: 7000 | K65: 12.42 | L65: 0.0564 | M65: 82.4 | N65: 87.5 | O65: 63.4 | P65: 11440 | Q65: 61.7 | T65: 0.41
A66: 50 | B66: 408 | C66: 84 | D66: 60 | E66: 82.6 | F66: 2009-02-22T20:41:47 | G66: 61.8 | H66: 408 | I66: 8.4 | J66: 6000 | K66: 12.22 | L66: 0.0491 | M66: 82.6 | N66: 87.7 | O66: 66.1 | P66: 9967 | Q66: 61.8 | T66: 0.41
A67: 50.5 | B67: 411.3 | C67: 87 | D67: 60 | E67: 82.3 | F67: 2009-02-22T20:42:17 | G67: 61.4 | H67: 411.3 | I67: 8.7 | J67: 6000 | K67: 11.89 | L67: 0.0505 | M67: 82.3 | N67: 87.4 | O67: 70.7 | P67: 10241 | Q67: 61.4 | T67: 0.41
A68: 51 | B68: 409.6 | C68: 86 | D68: 60 | E68: 82.4 | F68: 2009-02-22T20:42:47 | G68: 61.9 | H68: 409.6 | I68: 8.6 | J68: 6000 | K68: 11.96 | L68: 0.0502 | M68: 82.4 | N68: 87.5 | O68: 69.7 | P68: 10183 | Q68: 61.9 | T68: 0.4
A69: 51.5 | B69: 414.3 | C69: 86 | D69: 60 | E69: 82.3 | F69: 2009-02-22T20:43:17 | G69: 61.5 | H69: 414.3 | I69: 8.6 | J69: 6000 | K69: 11.98 | L69: 0.0501 | M69: 82.3 | N69: 87.4 | O69: 69.4 | P69: 10167 | Q69: 61.5 | T69: 0.39
A70: 52 | B70: 415.1 | C70: 87 | D70: 55 | E70: 82.4 | F70: 2009-02-22T20:43:47 | G70: 61.7 | H70: 415.1 | I70: 8.7 | J70: 5500 | K70: 11.87 | L70: 0.0463 | M70: 82.4 | N70: 87.5 | O70: 71.1 | P70: 9408 | Q70: 61.7 | T70: 0.4
A71: 52.5 | B71: 421.3 | C71: 88 | D71: 50 | E71: 82.4 | F71: 2009-02-22T20:44:17 | G71: 61.9 | H71: 421.3 | I71: 8.8 | J71: 5000 | K71: 11.82 | L71: 0.0423 | M71: 82.4 | N71: 87.5 | O71: 71.7 | P71: 8584 | Q71: 61.9 | T71: 0.4
A72: 53 | B72: 424.4 | C72: 89 | D72: 50 | E72: 82.2 | F72: 2009-02-22T20:44:47 | G72: 62.3 | H72: 424.4 | I72: 8.9 | J72: 5000 | K72: 11.73 | L72: 0.0426 | M72: 82.2 | N72: 87.3 | O72: 73.1 | P72: 8653 | Q72: 62.3 | T72: 0.4
A73: 53.5 | B73: 427.7 | C73: 88 | D73: 50 | E73: 82.2 | F73: 2009-02-22T20:45:17 | G73: 62.2 | H73: 427.7 | I73: 8.8 | J73: 5000 | K73: 11.84 | L73: 0.0422 | M73: 82.2 | N73: 87.3 | O73: 71.4 | P73: 8571 | Q73: 62.2 | T73: 0.4
A74: 54 | B74: 428.2 | C74: 85 | D74: 55 | E74: 82.2 | F74: 2009-02-22T20:45:47 | G74: 62 | H74: 428.2 | I74: 8.5 | J74: 5500 | K74: 12.1 | L74: 0.0455 | M74: 82.2 | N74: 87.3 | O74: 67.8 | P74: 9227 | Q74: 62 | T74: 0.41
A75: 54.5 | B75: 428.3 | C75: 81 | D75: 55 | E75: 82.5 | F75: 2009-02-22T20:46:17 | G75: 62 | H75: 428.3 | I75: 8.1 | J75: 5500 | K75: 12.43 | L75: 0.0442 | M75: 82.5 | N75: 87.6 | O75: 63.3 | P75: 8982 | Q75: 62 | T75: 0.4
A76: 55 | B76: 429.2 | C76: 84 | D76: 55 | E76: 82.3 | F76: 2009-02-22T20:46:47 | G76: 62.4 | H76: 429.2 | I76: 8.4 | J76: 5500 | K76: 12.18 | L76: 0.0452 | M76: 82.3 | N76: 87.4 | O76: 66.7 | P76: 9168 | Q76: 62.4 | T76: 0.4
A77: 55.5 | B77: 433.3 | C77: 89 | D77: 55 | E77: 81.8 | F77: 2009-02-22T20:47:17 | G77: 62.4 | H77: 433.3 | I77: 8.9 | J77: 5500 | K77: 11.74 | L77: 0.0468 | M77: 81.8 | N77: 86.9 | O77: 72.9 | P77: 9510 | Q77: 62.4 | T77: 0.4
A78: 56 | B78: 430.1 | C78: 89 | D78: 50 | E78: 82 | F78: 2009-02-22T20:47:47 | G78: 62.4 | H78: 430.1 | I78: 8.9 | J78: 5000 | K78: 11.67 | L78: 0.0428 | M78: 82 | N78: 87.1 | O78: 73.9 | P78: 8695 | Q78: 62.4 | T78: 0.41
A79: 56.5 | B79: 431.2 | C79: 89 | D79: 50 | E79: 82 | F79: 2009-02-22T20:48:17 | G79: 61.6 | H79: 431.2 | I79: 8.9 | J79: 5000 | K79: 11.73 | L79: 0.0426 | M79: 82 | N79: 87.1 | O79: 73.1 | P79: 8654 | Q79: 61.6 | T79: 0.42
A80: 57 | B80: 433 | C80: 88 | D80: 50 | E80: 82 | F80: 2009-02-22T20:48:47 | G80: 62.6 | H80: 433 | I80: 8.8 | J80: 5000 | K80: 11.75 | L80: 0.0426 | M80: 82 | N80: 87.1 | O80: 72.8 | P80: 8640 | Q80: 62.6 | T80: 0.42
A81: 57.5 | B81: 437.8 | C81: 88 | D81: 50 | E81: 82 | F81: 2009-02-22T20:49:17 | G81: 62.5 | H81: 437.8 | I81: 8.8 | J81: 5000 | K81: 11.82 | L81: 0.0423 | M81: 82 | N81: 87 | O81: 71.8 | P81: 8588 | Q81: 62.5 | T81: 0.42
A82: 58 | B82: 434.6 | C82: 85 | D82: 50 | E82: 82.3 | F82: 2009-02-22T20:49:47 | G82: 62.4 | H82: 434.6 | I82: 8.5 | J82: 5000 | K82: 12.11 | L82: 0.0413 | M82: 82.3 | N82: 87.4 | O82: 67.6 | P82: 8380 | Q82: 62.4 | T82: 0.43
A83: 58.5 | B83: 438.1 | C83: 83 | D83: 19.77 | E83: 83.6 | F83: 2009-02-22T20:50:17 | G83: 62.5 | H83: 438.1 | I83: 8.3 | J83: 1977 | K83: 12.28 | L83: 0.0161 | M83: 83.6 | N83: 88.8 | O83: 65.3 | P83: 3268 | Q83: 62.5 | T83: 0.39
A84: 59 | B84: 448.3 | C84: 82 | D84: 28.52 | E84: 83.1 | F84: 2009-02-22T20:50:47 | G84: 62.7 | H84: 448.3 | I84: 8.2 | J84: 2852 | K84: 12.38 | L84: 0.023 | M84: 83.1 | N84: 88.2 | O84: 64 | P84: 4678 | Q84: 62.7 | T84: 0.39
A85: 59.5 | B85: 443.9 | C85: 84 | D85: 32.49 | E85: 82.9 | F85: 2009-02-22T20:51:17 | G85: 62.9 | H85: 443.9 | I85: 8.4 | J85: 3249 | K85: 12.22 | L85: 0.0266 | M85: 82.9 | N85: 88 | O85: 66.1 | P85: 5398 | Q85: 62.9 | T85: 0.39
A86: 60 | B86: 451.5 | C86: 81 | D86: 30.27 | E86: 83.1 | F86: 2009-02-22T20:51:47 | G86: 65.2 | H86: 451.5 | I86: 8.1 | J86: 3027 | K86: 12.51 | L86: 0.0242 | M86: 83.1 | N86: 88.2 | O86: 62.3 | P86: 4912 | Q86: 65.2 | T86: 0.39
A87: 60.5 | B87: 455 | C87: 84 | D87: 25.05 | E87: 83 | F87: 2009-02-22T20:52:17 | G87: 66.5 | H87: 455 | I87: 8.4 | J87: 2505 | K87: 12.19 | L87: 0.0205 | M87: 83 | N87: 88.1 | O87: 66.5 | P87: 4171 | Q87: 66.5 | T87: 0.4
A88: 61 | B88: 453.3 | C88: 84 | D88: 21.5 | E88: 83.2 | F88: 2009-02-22T20:52:47 | G88: 67.4 | H88: 453.3 | I88: 8.4 | J88: 2150 | K88: 12.19 | L88: 0.0176 | M88: 83.2 | N88: 88.4 | O88: 66.5 | P88: 3580 | Q88: 67.4 | T88: 0.39
A89: 61.5 | B89: 448.6 | C89: 85 | D89: 23.46 | E89: 83.2 | F89: 2009-02-22T20:53:17 | G89: 66.8 | H89: 448.6 | I89: 8.5 | J89: 2346 | K89: 12.1 | L89: 0.0194 | M89: 83.2 | N89: 88.3 | O89: 67.8 | P89: 3937 | Q89: 66.8 | T89: 0.39
A90: 62 | B90: 455.5 | C90: 86 | D90: 24.45 | E90: 82.9 | F90: 2009-02-22T20:53:47 | G90: 67.7 | H90: 455.5 | I90: 8.6 | J90: 2445 | K90: 11.96 | L90: 0.0204 | M90: 82.9 | N90: 88 | O90: 69.7 | P90: 4149 | Q90: 67.7 | T90: 0.39
A91: 62.5 | B91: 456.6 | C91: 84 | D91: 23.95 | E91: 82.9 | F91: 2009-02-22T20:54:17 | G91: 65.7 | H91: 456.6 | I91: 8.4 | J91: 2395 | K91: 12.14 | L91: 0.0197 | M91: 82.9 | N91: 88.1 | O91: 67.2 | P91: 4004 | Q91: 65.7 | T91: 0.39
A92: 63 | B92: 458.1 | C92: 82 | D92: 20.82 | E92: 83.2 | F92: 2009-02-22T20:54:47 | G92: 66.4 | H92: 458.1 | I92: 8.2 | J92: 2082 | K92: 12.35 | L92: 0.0169 | M92: 83.2 | N92: 88.4 | O92: 64.4 | P92: 3423 | Q92: 66.4 | T92: 0.39
A93: 63.5 | B93: 460.7 | C93: 85 | D93: 11.92 | E93: 83.3 | F93: 2009-02-22T20:55:17 | G93: 67.4 | H93: 460.7 | I93: 8.5 | J93: 1192 | K93: 12.06 | L93: 0.0099 | M93: 83.3 | N93: 88.5 | O93: 68.3 | P93: 2006 | Q93: 67.4 | T93: 0.4
A94: 64 | B94: =FT -> 458.9 | C94: =Oxy*10 -> 86 | D94: =CO/100 -> 10.41 | E94: =Effg -> 83.4 | F94: 2009-02-22T20:55:47 | G94: 68 | H94: 458.9 | I94: 8.6 | J94: 1041 | K94: 11.98 | L94: 0.0087 | M94: 83.4 | N94: 88.6 | O94: 69.5 | P94: 1764 | Q94: 68 | T94: 0.39
A95: 64.5 | B95: 467.5 | C95: 87 | D95: 11.8 | E95: 83.1 | F95: 2009-02-22T20:56:17 | G95: 68 | H95: 467.5 | I95: 8.7 | J95: 1180 | K95: 11.94 | L95: 0.0099 | M95: 83.1 | N95: 88.2 | O95: 70 | P95: 2007 | Q95: 68 | T95: 0.39
A96: 65 | B96: 468.7 | C96: 85 | D96: 12.87 | E96: 83.2 | F96: 2009-02-22T20:56:47 | G96: 68.9 | H96: 468.7 | I96: 8.5 | J96: 1287 | K96: 12.13 | L96: 0.0106 | M96: 83.2 | N96: 88.3 | O96: 67.4 | P96: 2154 | Q96: 68.9 | T96: 0.4
A97: 65.5 | B97: 464.5 | C97: 85 | D97: 13.44 | E97: 83.2 | F97: 2009-02-22T20:57:17 | G97: 68.1 | H97: 464.5 | I97: 8.5 | J97: 1344 | K97: 12.08 | L97: 0.0111 | M97: 83.2 | N97: 88.4 | O97: 68.1 | P97: 2259 | Q97: 68.1 | T97: 0.4
A98: 66 | B98: 469.8 | C98: 81 | D98: 17.79 | E98: 83.2 | F98: 2009-02-22T20:57:47 | G98: 69.4 | H98: 469.8 | I98: 8.1 | J98: 1779 | K98: 12.44 | L98: 0.0143 | M98: 83.2 | N98: 88.4 | O98: 63.2 | P98: 2903 | Q98: 69.4 | T98: 0.39
A99: 66.5 | B99: 471.9 | C99: 78 | D99: 21.69 | E99: 83.2 | F99: 2009-02-22T20:58:17 | G99: 68.5 | H99: 471.9 | I99: 7.8 | J99: 2169 | K99: 12.75 | L99: 0.017 | M99: 83.2 | N99: 88.3 | O99: 59.2 | P99: 3452 | Q99: 68.5 | T99: 0.39
A100: 67 | B100: 476.2 | C100: 80 | D100: 21.42 | E100: 83 | F100: 2009-02-22T20:58:47 | G100: 69.3 | H100: 476.2 | I100: 8 | J100: 2142 | K100: 12.56 | L100: 0.0171 | M100: 83 | N100: 88.1 | O100: 61.6 | P100: 3461 | Q100: 69.3 | T100: 0.39
A101: 67.5 | B101: 475.9 | C101: 83 | D101: 20.73 | E101: 82.8 | F101: 2009-02-22T20:59:17 | G101: 68.4 | H101: 475.9 | I101: 8.3 | J101: 2073 | K101: 12.26 | L101: 0.0169 | M101: 82.8 | N101: 87.9 | O101: 65.5 | P101: 3432 | Q101: 68.4 | T101: 0.38
A102: 68 | B102: 476.3 | C102: 86 | D102: 16.04 | E102: 82.8 | F102: 2009-02-22T20:59:47 | G102: 69.5 | H102: 476.3 | I102: 8.6 | J102: 1604 | K102: 12 | L102: 0.0134 | M102: 82.8 | N102: 87.9 | O102: 69.2 | P102: 2714 | Q102: 69.5 | T102: 0.38
A103: 68.5 | B103: 476.2 | C103: 87 | D103: 12.52 | E103: 82.8 | F103: 2009-02-22T21:00:17 | G103: 65.8 | H103: 476.2 | I103: 8.7 | J103: 1252 | K103: 11.93 | L103: 0.0105 | M103: 82.8 | N103: 87.9 | O103: 70.1 | P103: 2130 | Q103: 65.8 | T103: 0.39
A104: 69 | B104: 480.7 | C104: 90 | D104: 14.99 | E104: 82.2 | F104: 2009-02-22T21:00:47 | G104: 65.3 | H104: 480.7 | I104: 9 | J104: 1499 | K104: 11.57 | L104: 0.013 | M104: 82.2 | N104: 87.3 | O104: 75.4 | P104: 2629 | Q104: 65.3 | T104: 0.39
A105: 69.5 | B105: 486 | C105: 92 | D105: 10.3 | E105: 82.1 | F105: 2009-02-22T21:01:17 | G105: 64.7 | H105: 486 | I105: 9.2 | J105: 1030 | K105: 11.39 | L105: 0.009 | M105: 82.1 | N105: 87.2 | O105: 78.3 | P105: 1836 | Q105: 64.7 | T105: 0.36
A106: 70 | B106: 483.1 | C106: 94 | D106: 7.16 | E106: 82.2 | F106: 2009-02-22T21:01:47 | G106: 66.7 | H106: 483.1 | I106: 9.4 | J106: 716 | K106: 11.23 | L106: 0.0064 | M106: 82.2 | N106: 87.3 | O106: 80.8 | P106: 1295 | Q106: 66.7 | T106: 0.37
A107: 70.5 | B107: 479.1 | C107: 96 | D107: 5.32 | E107: 82.3 | F107: 2009-02-22T21:02:17 | G107: 67.3 | H107: 479.1 | I107: 9.6 | J107: 532 | K107: 11.06 | L107: 0.0048 | M107: 82.3 | N107: 87.4 | O107: 83.6 | P107: 977 | Q107: 67.3 | T107: 0.36
A108: 71 | B108: 480.9 | C108: 98 | D108: 7.4 | E108: 81.9 | F108: 2009-02-22T21:02:47 | G108: 66.9 | H108: 480.9 | I108: 9.8 | J108: 740 | K108: 10.85 | L108: 0.0068 | M108: 81.9 | N108: 87 | O108: 87.2 | P108: 1385 | Q108: 66.9 | T108: 0.37
A109: 71.5 | B109: 482.9 | C109: 98 | D109: 7.36 | E109: 81.9 | F109: 2009-02-22T21:03:17 | G109: 67.6 | H109: 482.9 | I109: 9.8 | J109: 736 | K109: 10.8 | L109: 0.0068 | M109: 81.9 | N109: 86.9 | O109: 88 | P109: 1384 | Q109: 67.6 | T109: 0.36
A110: 72 | B110: 482.5 | C110: 101 | D110: 8.02 | E110: 81.6 | F110: 2009-02-22T21:03:47 | G110: 67.4 | H110: 482.5 | I110: 10.1 | J110: 802 | K110: 10.57 | L110: 0.0076 | M110: 81.6 | N110: 86.7 | O110: 92 | P110: 1540 | Q110: 67.4 | T110: 0.36
A111: 72.5 | B111: 488.6 | C111: 102 | D111: 4.57 | E111: 81.5 | F111: 2009-02-22T21:04:17 | G111: 67.7 | H111: 488.6 | I111: 10.2 | J111: 457 | K111: 10.46 | L111: 0.0044 | M111: 81.5 | N111: 86.5 | O111: 94.2 | P111: 887 | Q111: 67.7 | T111: 0.36
A112: 73 | B112: 480.1 | C112: 103 | D112: 5.08 | E112: 81.6 | F112: 2009-02-22T21:04:47 | G112: 68.1 | H112: 480.1 | I112: 10.3 | J112: 508 | K112: 10.33 | L112: 0.0049 | M112: 81.6 | N112: 86.7 | O112: 96.4 | P112: 998 | Q112: 68.1 | T112: 0.36
A113: 73.5 | B113: 483.8 | C113: 105 | D113: 9.05 | E113: 81 | F113: 2009-02-22T21:05:17 | G113: 67.6 | H113: 483.8 | I113: 10.5 | J113: 905 | K113: 10.12 | L113: 0.0089 | M113: 81 | N113: 86.1 | O113: 100.6 | P113: 1815 | Q113: 67.6 | T113: 0.36
A114: 74 | B114: 487.8 | C114: 107 | D114: 4.11 | E114: 81 | F114: 2009-02-22T21:05:47 | G114: 68 | H114: 487.8 | I114: 10.7 | J114: 411 | K114: 9.99 | L114: 0.0041 | M114: 81 | N114: 86.1 | O114: 103.2 | P114: 835 | Q114: 68 | T114: 0.36
A115: 74.5 | B115: 482.5 | C115: 110 | D115: 2.32 | E115: 81 | F115: 2009-02-22T21:06:17 | G115: 69.3 | H115: 482.5 | I115: 11 | J115: 232 | K115: 9.7 | L115: 0.0024 | M115: 81 | N115: 86 | O115: 109.2 | P115: 485 | Q115: 69.3 | T115: 0.37
A116: 75 | B116: 480.3 | C116: 112 | D116: 1.5 | E116: 80.8 | F116: 2009-02-22T21:06:47 | G116: 69.7 | H116: 480.3 | I116: 11.2 | J116: 150 | K116: 9.47 | L116: 0.0016 | M116: 80.8 | N116: 85.9 | O116: 114.5 | P116: 322 | Q116: 69.7 | T116: 0.38
A117: 75.5 | B117: 485.9 | C117: 114 | D117: 1.24 | E117: 80.4 | F117: 2009-02-22T21:07:17 | G117: 70 | H117: 485.9 | I117: 11.4 | J117: 124 | K117: 9.24 | L117: 0.0013 | M117: 80.4 | N117: 85.4 | O117: 119.6 | P117: 272 | Q117: 70 | T117: 0.38
A118: 76 | B118: 489.6 | C118: 113 | D118: 1.32 | E118: 80.4 | F118: 2009-02-22T21:07:47 | G118: 68.1 | H118: 489.6 | I118: 11.3 | J118: 132 | K118: 9.34 | L118: 0.0014 | M118: 80.4 | N118: 85.3 | O118: 117.2 | P118: 287 | Q118: 68.1 | T118: 0.38
A119: 76.5 | B119: 485.5 | C119: 115 | D119: 1.34 | E119: 80.2 | F119: 2009-02-22T21:08:17 | G119: 67.9 | H119: 485.5 | I119: 11.5 | J119: 134 | K119: 9.15 | L119: 0.0015 | M119: 80.2 | N119: 85.2 | O119: 121.9 | P119: 297 | Q119: 67.9 | T119: 0.37
A120: 77 | B120: 482.6 | C120: 115 | D120: 1.46 | E120: 80.4 | F120: 2009-02-22T21:08:47 | G120: 71.3 | H120: 482.6 | I120: 11.5 | J120: 146 | K120: 9.15 | L120: 0.0016 | M120: 80.4 | N120: 85.4 | O120: 121.9 | P120: 324 | Q120: 71.3 | T120: 0.38
A121: 77.5 | B121: 484.2 | C121: 115 | D121: 4.42 | E121: 80.1 | F121: 2009-02-22T21:09:17 | G121: 66.6 | H121: 484.2 | I121: 11.5 | J121: 442 | K121: 9.18 | L121: 0.0048 | M121: 80.1 | N121: 85 | O121: 121.1 | P121: 977 | Q121: 66.6 | T121: 0.37
A122: 78 | B122: 487.5 | C122: 115 | D122: 6.83 | E122: 79.9 | F122: 2009-02-22T21:09:47 | G122: 67.1 | H122: 487.5 | I122: 11.5 | J122: 683 | K122: 9.2 | L122: 0.0074 | M122: 79.9 | N122: 84.8 | O122: 120.7 | P122: 1507 | Q122: 67.1 | T122: 0.37
A123: 78.5 | B123: 486.3 | C123: 116 | D123: 5.77 | E123: 79.8 | F123: 2009-02-22T21:10:17 | G123: 65.7 | H123: 486.3 | I123: 11.6 | J123: 577 | K123: 9.08 | L123: 0.0064 | M123: 79.8 | N123: 84.7 | O123: 123.6 | P123: 1290 | Q123: 65.7 | T123: 0.37
A124: 79 | B124: 487.4 | C124: 115 | D124: 4.38 | E124: 80 | F124: 2009-02-22T21:10:47 | G124: 66.2 | H124: 487.4 | I124: 11.5 | J124: 438 | K124: 9.23 | L124: 0.0047 | M124: 80 | N124: 85 | O124: 120 | P124: 963 | Q124: 66.2 | T124: 0.37
A125: 79.5 | B125: 490.2 | C125: 114 | D125: 4.73 | E125: 80 | F125: 2009-02-22T21:11:17 | G125: 67 | H125: 490.2 | I125: 11.4 | J125: 473 | K125: 9.25 | L125: 0.0051 | M125: 80 | N125: 84.9 | O125: 119.4 | P125: 1038 | Q125: 67 | T125: 0.38
A126: 80 | B126: 485.2 | C126: 114 | D126: 5.95 | E126: 80.1 | F126: 2009-02-22T21:11:47 | G126: 67.7 | H126: 485.2 | I126: 11.4 | J126: 595 | K126: 9.26 | L126: 0.0064 | M126: 80.1 | N126: 85.1 | O126: 119.2 | P126: 1304 | Q126: 67.7 | T126: 0.36
A127: 80.5 | B127: 492.6 | C127: 113 | D127: 5.72 | E127: 80 | F127: 2009-02-22T21:12:17 | G127: 67.2 | H127: 492.6 | I127: 11.3 | J127: 572 | K127: 9.35 | L127: 0.0061 | M127: 80 | N127: 85 | O127: 117 | P127: 1242 | Q127: 67.2 | T127: 0.35
A128: 81 | B128: 492.6 | C128: 114 | D128: 4.07 | E128: 80 | F128: 2009-02-22T21:12:47 | G128: 69.1 | H128: 492.6 | I128: 11.4 | J128: 407 | K128: 9.25 | L128: 0.0044 | M128: 80 | N128: 85 | O128: 119.5 | P128: 893 | Q128: 69.1 | T128: 0.35
A129: 81.5 | B129: 485.9 | C129: 115 | D129: 3.9 | E129: 80.2 | F129: 2009-02-22T21:13:17 | G129: 69.8 | H129: 485.9 | I129: 11.5 | J129: 390 | K129: 9.17 | L129: 0.0043 | M129: 80.2 | N129: 85.1 | O129: 121.3 | P129: 863 | Q129: 69.8 | T129: 0.35
A130: 82 | B130: 490.4 | C130: 117 | D130: 4.82 | E130: 79.7 | F130: 2009-02-22T21:13:47 | G130: 69.6 | H130: 490.4 | I130: 11.7 | J130: 482 | K130: 9.02 | L130: 0.0053 | M130: 79.7 | N130: 84.7 | O130: 125.2 | P130: 1085 | Q130: 69.6 | T130: 0.35
A131: 82.5 | B131: 492.5 | C131: 115 | D131: 5.52 | E131: 79.9 | F131: 2009-02-22T21:14:17 | G131: 68.9 | H131: 492.5 | I131: 11.5 | J131: 552 | K131: 9.23 | L131: 0.006 | M131: 79.9 | N131: 84.8 | O131: 120 | P131: 1214 | Q131: 68.9 | T131: 0.35
A132: 83 | B132: 496.6 | C132: 113 | D132: 3.78 | E132: 80.1 | F132: 2009-02-22T21:14:47 | G132: 68.9 | H132: 496.6 | I132: 11.3 | J132: 378 | K132: 9.36 | L132: 0.004 | M132: 80.1 | N132: 85 | O132: 116.8 | P132: 819 | Q132: 68.9 | T132: 0.35
A133: 83.5 | B133: 495 | C133: 112 | D133: 3.38 | E133: 80.2 | F133: 2009-02-22T21:15:17 | G133: 68.9 | H133: 495 | I133: 11.2 | J133: 338 | K133: 9.43 | L133: 0.0036 | M133: 80.2 | N133: 85.2 | O133: 115.3 | P133: 728 | Q133: 68.9 | T133: 0.35
A134: 84 | B134: 497.2 | C134: 113 | D134: 2.53 | E134: 80 | F134: 2009-02-22T21:15:47 | G134: 67.8 | H134: 497.2 | I134: 11.3 | J134: 253 | K134: 9.33 | L134: 0.0027 | M134: 80 | N134: 85 | O134: 117.6 | P134: 550 | Q134: 67.8 | T134: 0.35
A135: 84.5 | B135: 489.2 | C135: 114 | D135: 4.34 | E135: 80.2 | F135: 2009-02-22T21:16:17 | G135: 68.9 | H135: 489.2 | I135: 11.4 | J135: 434 | K135: 9.3 | L135: 0.0047 | M135: 80.2 | N135: 85.1 | O135: 118.3 | P135: 947 | Q135: 68.9 | T135: 0.35
A136: 85 | B136: 486.9 | C136: 112 | D136: 9.12 | E136: 80.2 | F136: 2009-02-22T21:16:47 | G136: 68.5 | H136: 486.9 | I136: 11.2 | J136: 912 | K136: 9.47 | L136: 0.0096 | M136: 80.2 | N136: 85.2 | O136: 114.4 | P136: 1955 | Q136: 68.5 | T136: 0.34
A137: 85.5 | B137: 490.7 | C137: 111 | D137: 14.49 | E137: 79.9 | F137: 2009-02-22T21:17:17 | G137: 68.8 | H137: 490.7 | I137: 11.1 | J137: 1449 | K137: 9.59 | L137: 0.0151 | M137: 79.9 | N137: 84.9 | O137: 111.8 | P137: 3069 | Q137: 68.8 | T137: 0.35
A138: 86 | B138: 493.8 | C138: 110 | D138: 18.6 | E138: 79.7 | F138: 2009-02-22T21:17:47 | G138: 70.1 | H138: 493.8 | I138: 11 | J138: 1860 | K138: 9.64 | L138: 0.0193 | M138: 79.7 | N138: 84.7 | O138: 110.5 | P138: 3916 | Q138: 70.1 | T138: 0.34
A139: 86.5 | B139: 490.2 | C139: 113 | D139: 11.7 | E139: 79.9 | F139: 2009-02-22T21:18:17 | G139: 69.9 | H139: 490.2 | I139: 11.3 | J139: 1170 | K139: 9.42 | L139: 0.0124 | M139: 79.9 | N139: 84.9 | O139: 115.6 | P139: 2522 | Q139: 69.9 | T139: 0.34
A140: 87 | B140: 484 | C140: 113 | D140: 8.34 | E140: 80.2 | F140: 2009-02-22T21:18:47 | G140: 69.5 | H140: 484 | I140: 11.3 | J140: 834 | K140: 9.38 | L140: 0.0089 | M140: 80.2 | N140: 85.2 | O140: 116.3 | P140: 1804 | Q140: 69.5 | T140: 0.34
A141: 87.5 | B141: 492.8 | C141: 113 | D141: 9.79 | E141: 79.9 | F141: 2009-02-22T21:19:17 | G141: 70 | H141: 492.8 | I141: 11.3 | J141: 979 | K141: 9.36 | L141: 0.0105 | M141: 79.9 | N141: 84.8 | O141: 116.9 | P141: 2124 | Q141: 70 | T141: 0.34
A142: 88 | B142: 491.7 | C142: 114 | D142: 10.62 | E142: 79.8 | F142: 2009-02-22T21:19:47 | G142: 71 | H142: 491.7 | I142: 11.4 | J142: 1062 | K142: 9.26 | L142: 0.0115 | M142: 79.8 | N142: 84.7 | O142: 119.2 | P142: 2328 | Q142: 71 | T142: 0.34
A143: 88.5 | B143: 489.4 | C143: 115 | D143: 8.8 | E143: 79.9 | F143: 2009-02-22T21:20:17 | G143: 71.3 | H143: 489.4 | I143: 11.5 | J143: 880 | K143: 9.22 | L143: 0.0095 | M143: 79.9 | N143: 84.8 | O143: 120.3 | P143: 1938 | Q143: 71.3 | T143: 0.34
A144: 89 | B144: 493 | C144: 119 | D144: 5.19 | E144: 79.4 | F144: 2009-02-22T21:20:47 | G144: 69.6 | H144: 493 | I144: 11.9 | J144: 519 | K144: 8.82 | L144: 0.0059 | M144: 79.4 | N144: 84.3 | O144: 130 | P144: 1194 | Q144: 69.6 | T144: 0.34
A145: 89.5 | B145: 493.9 | C145: 120 | D145: 3.85 | E145: 79.3 | F145: 2009-02-22T21:21:17 | G145: 70.6 | H145: 493.9 | I145: 12 | J145: 385 | K145: 8.7 | L145: 0.0044 | M145: 79.3 | N145: 84.2 | O145: 133.3 | P145: 898 | Q145: 70.6 | T145: 0.34
A146: 90 | B146: 498.5 | C146: 123 | D146: 5.15 | E146: 78.6 | F146: 2009-02-22T21:21:47 | G146: 70.6 | H146: 498.5 | I146: 12.3 | J146: 515 | K146: 8.46 | L146: 0.0061 | M146: 78.6 | N146: 83.5 | O146: 140.1 | P146: 1236 | Q146: 70.6 | T146: 0.34
A147: 90.5 | B147: 501.1 | C147: 124 | D147: 3.38 | E147: 78.3 | F147: 2009-02-22T21:22:17 | G147: 69.9 | H147: 501.1 | I147: 12.4 | J147: 338 | K147: 8.27 | L147: 0.0041 | M147: 78.3 | N147: 83.2 | O147: 145.5 | P147: 830 | Q147: 69.9 | T147: 0.34
A148: 91 | B148: 494.3 | C148: 127 | D148: 2.83 | E148: 78.2 | F148: 2009-02-22T21:22:47 | G148: 70.8 | H148: 494.3 | I148: 12.7 | J148: 283 | K148: 8.01 | L148: 0.0035 | M148: 78.2 | N148: 83 | O148: 153.3 | P148: 717 | Q148: 70.8 | T148: 0.34
A149: 91.5 | B149: 497.2 | C149: 127 | D149: 2.96 | E149: 78.1 | F149: 2009-02-22T21:23:17 | G149: 70.6 | H149: 497.2 | I149: 12.7 | J149: 296 | K149: 8.01 | L149: 0.0037 | M149: 78.1 | N149: 82.9 | O149: 153.4 | P149: 750 | Q149: 70.6 | T149: 0.34
A150: 92 | B150: 497.9 | C150: 128 | D150: 3.49 | E150: 77.9 | F150: 2009-02-22T21:23:47 | G150: 71.4 | H150: 497.9 | I150: 12.8 | J150: 349 | K150: 7.95 | L150: 0.0044 | M150: 77.9 | N150: 82.7 | O150: 155.5 | P150: 892 | Q150: 71.4 | T150: 0.34
A151: 92.5 | B151: 500.6 | C151: 128 | D151: 3.62 | E151: 77.8 | F151: 2009-02-22T21:24:17 | G151: 70.9 | H151: 500.6 | I151: 12.8 | J151: 362 | K151: 7.93 | L151: 0.0046 | M151: 77.8 | N151: 82.6 | O151: 156 | P151: 927 | Q151: 70.9 | T151: 0.34
A152: 93 | B152: 494.9 | C152: 128 | D152: 3.31 | E152: 77.9 | F152: 2009-02-22T21:24:47 | G152: 70.7 | H152: 494.9 | I152: 12.8 | J152: 331 | K152: 7.9 | L152: 0.0042 | M152: 77.9 | N152: 82.8 | O152: 156.8 | P152: 850 | Q152: 70.7 | T152: 0.33
A153: 93.5 | B153: 497.7 | C153: 129 | D153: 4.26 | E153: 77.6 | F153: 2009-02-22T21:25:17 | G153: 70.7 | H153: 497.7 | I153: 12.9 | J153: 426 | K153: 7.8 | L153: 0.0055 | M153: 77.6 | N153: 82.4 | O153: 160.1 | P153: 1108 | Q153: 70.7 | T153: 0.34
A154: 94 | B154: 491.5 | C154: 132 | D154: 7.23 | E154: 77.2 | F154: 2009-02-22T21:25:47 | G154: 71.4 | H154: 491.5 | I154: 13.2 | J154: 723 | K154: 7.58 | L154: 0.0095 | M154: 77.2 | N154: 82 | O154: 167.9 | P154: 1937 | Q154: 71.4 | T154: 0.34
A155: 94.5 | B155: 497.7 | C155: 133 | D155: 7.22 | E155: 76.7 | F155: 2009-02-22T21:26:17 | G155: 70.5 | H155: 497.7 | I155: 13.3 | J155: 722 | K155: 7.46 | L155: 0.0097 | M155: 76.7 | N155: 81.4 | O155: 172.3 | P155: 1966 | Q155: 70.5 | T155: 0.34
A156: 95 | B156: 497.9 | C156: 135 | D156: 6.95 | E156: 76.3 | F156: 2009-02-22T21:26:47 | G156: 70.6 | H156: 497.9 | I156: 13.5 | J156: 695 | K156: 7.27 | L156: 0.0096 | M156: 76.3 | N156: 81 | O156: 179.1 | P156: 1940 | Q156: 70.6 | T156: 0.33
A157: 95.5 | B157: 497.5 | C157: 136 | D157: 6.56 | E157: 76 | F157: 2009-02-22T21:27:17 | G157: 69.9 | H157: 497.5 | I157: 13.6 | J157: 656 | K157: 7.16 | L157: 0.0092 | M157: 76 | N157: 80.8 | O157: 183.5 | P157: 1860 | Q157: 69.9 | T157: 0.33
A158: 96 | B158: =FT -> 499 | C158: =Oxy*10 -> 136 | D158: =CO/100 -> 6.83 | E158: =Effg -> 75.9 | F158: 2009-02-22T21:27:47 | G158: 69.8 | H158: 499 | I158: 13.6 | J158: 683 | K158: 7.14 | L158: 0.0096 | M158: 75.9 | N158: 80.6 | O158: 184.5 | P158: 1943 | Q158: 69.8 | T158: 0.33
A159: 96.5 | B159: 497.3 | C159: 135 | D159: 6.82 | E159: 76.2 | F159: 2009-02-22T21:28:17 | G159: 72 | H159: 497.3 | I159: 13.5 | J159: 682 | K159: 7.21 | L159: 0.0095 | M159: 76.2 | N159: 80.9 | O159: 181.7 | P159: 1921 | Q159: 72 | T159: 0.33
A160: 97 | B160: 501.9 | C160: 140 | D160: 6.73 | E160: 75.1 | F160: 2009-02-22T21:28:47 | G160: 71.6 | H160: 501.9 | I160: 14 | J160: 673 | K160: 6.81 | L160: 0.0099 | M160: 75.1 | N160: 79.7 | O160: 198.2 | P160: 2007 | Q160: 71.6 | T160: 0.32
A161: 97.5 | B161: 497.9 | C161: 142 | D161: 6.79 | E161: 74.6 | F161: 2009-02-22T21:29:17 | G161: 71.6 | H161: 497.9 | I161: 14.2 | J161: 679 | K161: 6.56 | L161: 0.0103 | M161: 74.6 | N161: 79.2 | O161: 209.3 | P161: 2100 | Q161: 71.6 | T161: 0.32
A162: 98 | B162: 496.5 | C162: 146 | D162: 10.9 | E162: 73 | F162: 2009-02-22T21:29:47 | G162: 70.3 | H162: 496.5 | I162: 14.6 | J162: 1090 | K162: 6.14 | L162: 0.0177 | M162: 73 | N162: 77.5 | O162: 230.5 | P162: 3602 | Q162: 70.3 | T162: 0.33
A163: 98.5 | B163: 487.8 | C163: 149 | D163: 10.9 | E163: 72.6 | F163: 2009-02-22T21:30:17 | G163: 71.1 | H163: 487.8 | I163: 14.9 | J163: 1090 | K163: 5.86 | L163: 0.0186 | M163: 72.6 | N163: 77 | O163: 246.4 | P163: 3776 | Q163: 71.1 | T163: 0.32
A164: 99 | B164: 488.4 | C164: 150 | D164: 10.88 | E164: 72.2 | F164: 2009-02-22T21:30:47 | G164: 70 | H164: 488.4 | I164: 15 | J164: 1088 | K164: 5.78 | L164: 0.0188 | M164: 72.2 | N164: 76.7 | O164: 251.3 | P164: 3822 | Q164: 70 | T164: 0.32
A165: 99.5 | B165: 489.4 | C165: 151 | D165: 12.18 | E165: 71.7 | F165: 2009-02-22T21:31:17 | G165: 70 | H165: 489.4 | I165: 15.1 | J165: 1218 | K165: 5.7 | L165: 0.0214 | M165: 71.7 | N165: 76.2 | O165: 256.3 | P165: 4339 | Q165: 70 | T165: 0.32
A166: 100 | B166: 492.6 | C166: 152 | D166: 13.93 | E166: 71.1 | F166: 2009-02-22T21:31:47 | G166: 69.1 | H166: 492.6 | I166: 15.2 | J166: 1393 | K166: 5.63 | L166: 0.0247 | M166: 71.1 | N166: 75.5 | O166: 260.7 | P166: 5024 | Q166: 69.1 | T166: 0.32
A167: 100.5 | B167: 492 | C167: 153 | D167: 15.55 | E167: 70.6 | F167: 2009-02-22T21:32:17 | G167: 69.6 | H167: 492 | I167: 15.3 | J167: 1555 | K167: 5.52 | L167: 0.0282 | M167: 70.6 | N167: 75 | O167: 268 | P167: 5722 | Q167: 69.6 | T167: 0.32
A168: 101 | B168: 487 | C168: 155 | D168: 17.12 | E168: 70.1 | F168: 2009-02-22T21:32:47 | G168: 69.2 | H168: 487 | I168: 15.5 | J168: 1712 | K168: 5.36 | L168: 0.0319 | M168: 70.1 | N168: 74.4 | O168: 278.6 | P168: 6482 | Q168: 69.2 | T168: 0.32
A169: 101.5 | B169: 486.7 | C169: 153 | D169: 20.13 | E169: 70.2 | F169: 2009-02-22T21:33:17 | G169: 69.1 | H169: 486.7 | I169: 15.3 | J169: 2013 | K169: 5.46 | L169: 0.0368 | M169: 70.2 | N169: 74.5 | O169: 271.5 | P169: 7478 | Q169: 69.1 | T169: 0.31
A170: 102 | B170: 484.7 | C170: 154 | D170: 20 | E170: 70 | F170: 2009-02-22T21:33:47 | G170: 69.5 | H170: 484.7 | I170: 15.4 | J170: 2000 | K170: 5.38 | L170: 0.0372 | M170: 70 | N170: 74.3 | O170: 277.3 | P170: 7547 | Q170: 69.5 | T170: 0.32
A171: 102.5 | B171: 475.9 | C171: 158 | D171: 23.22 | E171: 68.5 | F171: 2009-02-22T21:34:17 | G171: 68.9 | H171: 475.9 | I171: 15.8 | J171: 2322 | K171: 5 | L171: 0.0464 | M171: 68.5 | N171: 72.7 | O171: 305.7 | P171: 9420 | Q171: 68.9 | T171: 0.32
A172: 103 | B172: 475.1 | C172: 159 | D172: 28.79 | E172: 67.8 | F172: 2009-02-22T21:34:47 | G172: 68.7 | H172: 475.1 | I172: 15.9 | J172: 2879 | K172: 4.97 | L172: 0.0579 | M172: 67.8 | N172: 72 | O172: 308.5 | P172: 11761 | Q172: 68.7 | T172: 0.32
A173: 103.5 | B173: 487.4 | C173: 158 | D173: 32.49 | E173: 66.9 | F173: 2009-02-22T21:35:17 | G173: 69.4 | H173: 487.4 | I173: 15.8 | J173: 3249 | K173: 5 | L173: 0.065 | M173: 66.9 | N173: 71.1 | O173: 306.1 | P173: 13193 | Q173: 69.4 | T173: 0.31
A174: 104 | B174: 458.1 | C174: 176 | D174: 14.41 | E174: 59.1 | F174: 2009-02-22T21:35:47 | G174: 70 | H174: 458.1 | I174: 17.6 | J174: 1441 | K174: 3.31 | L174: 0.0435 | M174: 59.1 | N174: 62.8 | O174: 512.9 | P174: 8831 | Q174: 70 | T174: 0.32
A175: 104.5 | B175: 450.9 | C175: 146 | D175: 8.06 | E175: 75.5 | F175: 2009-02-22T21:36:17 | G175: 68.1 | H175: 450.9 | I175: 14.6 | J175: 806 | K175: 6.22 | L175: 0.013 | M175: 75.5 | N175: 80.1 | O175: 226.6 | P175: 2632 | Q175: 68.1 | T175: 0.32
A176: 105 | B176: 457.5 | C176: 138 | D176: 8.02 | E176: 77.1 | F176: 2009-02-22T21:36:47 | G176: 69.1 | H176: 457.5 | I176: 13.8 | J176: 802 | K176: 6.98 | L176: 0.0115 | M176: 77.1 | N176: 81.9 | O176: 190.7 | P176: 2331 | Q176: 69.1 | T176: 0.3
A177: 105.5 | B177: 470 | C177: 134 | D177: 11.49 | E177: 77.2 | F177: 2009-02-22T21:37:17 | G177: 69.7 | H177: 470 | I177: 13.4 | J177: 1149 | K177: 7.38 | L177: 0.0156 | M177: 77.2 | N177: 82 | O177: 175.2 | P177: 3162 | Q177: 69.7 | T177: 0.3
A178: 106 | B178: 473.5 | C178: 129 | D178: 14.43 | E178: 77.7 | F178: 2009-02-22T21:37:47 | G178: 68.9 | H178: 473.5 | I178: 12.9 | J178: 1443 | K178: 7.79 | L178: 0.0185 | M178: 77.7 | N178: 82.5 | O178: 160.7 | P178: 3762 | Q178: 68.9 | T178: 0.3
A179: 106.5 | B179: 472 | C179: 133 | D179: 12.21 | E179: 77.2 | F179: 2009-02-22T21:38:17 | G179: 69.3 | H179: 472 | I179: 13.3 | J179: 1221 | K179: 7.42 | L179: 0.0165 | M179: 77.2 | N179: 82 | O179: 173.6 | P179: 3341 | Q179: 69.3 | T179: 0.3
A180: 107 | B180: 480.2 | C180: 133 | D180: 12.13 | E180: 77 | F180: 2009-02-22T21:38:47 | G180: 70.4 | H180: 480.2 | I180: 13.3 | J180: 1213 | K180: 7.44 | L180: 0.0163 | M180: 77 | N180: 81.7 | O180: 173 | P180: 3311 | Q180: 70.4 | T180: 0.3
A181: 107.5 | B181: 481.2 | C181: 136 | D181: 15.29 | E181: 76.1 | F181: 2009-02-22T21:39:17 | G181: 71.1 | H181: 481.2 | I181: 13.6 | J181: 1529 | K181: 7.15 | L181: 0.0214 | M181: 76.1 | N181: 80.8 | O181: 183.8 | P181: 4339 | Q181: 71.1 | T181: 0.3
A182: 108 | B182: 475.7 | C182: 141 | D182: 13.08 | E182: 75.4 | F182: 2009-02-22T21:39:47 | G182: 71.4 | H182: 475.7 | I182: 14.1 | J182: 1308 | K182: 6.68 | L182: 0.0196 | M182: 75.4 | N182: 80 | O182: 204.1 | P182: 3977 | Q182: 71.4 | T182: 0.3
A183: 108.5 | B183: 484.2 | C183: 142 | D183: 13.2 | E183: 74.6 | F183: 2009-02-22T21:40:17 | G183: 69.8 | H183: 484.2 | I183: 14.2 | J183: 1320 | K183: 6.57 | L183: 0.0201 | M183: 74.6 | N183: 79.3 | O183: 208.8 | P183: 4076 | Q183: 69.8 | T183: 0.31
A184: 109 | B184: 486.5 | C184: 145 | D184: 14.72 | E184: 73.5 | F184: 2009-02-22T21:40:47 | G184: 68.6 | H184: 486.5 | I184: 14.5 | J184: 1472 | K184: 6.27 | L184: 0.0235 | M184: 73.5 | N184: 78 | O184: 223.8 | P184: 4767 | Q184: 68.6 | T184: 0.3
Q197: 59 | T197: 0.37
Q198: 61 | T198: 0.37
Q199: 62.3 | T199: 0.37
Q200: 60.8 | T200: 0.37
Q201: 62.9 | T201: 0.37
Q202: 63.5 | T202: 0.37
Q203: 64.4 | T203: 0.37
Q204: 64.4 | T204: 0.37
Q205: 64 | T205: 0.37
Q206: 64.6 | T206: 0.37
Q207: 64.8 | T207: 0.37
Q208: 65.2 | T208: 0.37
Q209: 65.1 | T209: 0.38
Q210: 64.7 | T210: 0.38
Q211: 64.1 | T211: 0.38
Q212: 63.8 | T212: 0.38
... 34 more rows
